lending/lending_fUSD_20240112
["ID","MTS","AMOUNT","RATE_DAILY","PERIOD"]
[311425734,1705091439357,-500.0,0.00023288,2]
[311425735,1705091439366,-500.0,0.00023288,2]
[311425736,1705091439375,-500.0,0.00023288,2]
[311425737,1705091439384,-166.62,0.00023469,2]
[311425738,1705091439393,-3745.0,0.000236,2]
[311425739,1705091439402,-44876.0,0.000236,2]
[311425740,1705091439411,-15560.88794363,0.00023617,2]
[311425741,1705091439420,-500.0,0.00023691,2]
[311425742,1705091439429,-155.0,0.00023758,2]
[311425743,1705091439438,-491.84,0.00023847,2]
[311425744,1705091439448,-265.59,0.00023867,2]
[311425745,1705091439457,-150.47,0.00023912,2]
[311425746,1705091439466,-158.35,0.00023938,2]
[311425747,1705091439477,-242.20151819,0.00023998,2]
[311425748,1705091439486,-203.876292,0.00023998,2]
[311425749,1705091439495,-255.28226221,0.00023998,2]
[311425750,1705091439504,-2294.06747086,0.00023998,2]
[311425751,1705091439513,-4236.75465784,0.00023998,2]
[311425752,1705091439522,-525.07076067,0.00023998,2]
[311425753,1705091439530,-277.81422268,0.00023998,2]
[311425754,1705091439539,-262.00641344,0.00023998,2]
[311425755,1705091439548,-473.62078422,0.00023998,2]
[311425756,1705091439559,-1653.17967422,0.00023999,2]
[311425757,1705091439569,-430.99724455,0.00024,2]
[311425758,1705091439579,-896.61,0.00024167,2]
[311425759,1705091439589,-500.0,0.00024239,2]
[311425760,1705091439598,-918.01,0.00024256,2]
[311425761,1705091439608,-200.0,0.00024279,2]
[311425762,1705091439617,-800.0,0.00024279,2]
[311425763,1705091439626,-200.0,0.00024279,2]
[311425764,1705091439635,-167.39,0.00024297,2]
[311425765,1705091439645,-918.58048648,0.00024433,2]
[311425766,1705091439654,-250.0,0.00024658,2]
[311425767,1705091439665,-735.20245442,0.00024787,2]
[311425768,1705091439675,-158.35,0.00024967,2]
[311425769,1705091439684,-167.16432493,0.00025,2]
[311425770,1705091439694,-201.78427875,0.00025,2]
[311425771,1705091439703,-303.07385153,0.00025,2]
[311425772,1705091439712,-1069.51142143,0.00025,2]
[311425773,1705091439722,-150.47,0.00025001,2]
[311425774,1705091439734,-15560.88794363,0.00025036,2]
[311425775,1705091439744,-896.61,0.00025146,2]
[311425776,1705091439754,-1365.0,0.00025167,2]
[311425777,1705091439764,-1087.10513143,0.00025425,2]
[311425778,1705091439773,-158.35,0.00025996,2]
[311425779,1705091439785,-150.0,0.00026079,2]
[311425780,1705091439797,-150.47,0.00026089,2]
[311425781,1705091439806,-491.84,0.0002611,2]
[311425782,1705091439816,-280.16933399,0.00026124,11]
[311425783,1705091439826,-896.61,0.00026124,2]
[311425784,1705091439836,-15560.88794363,0.00026454,2]
[311425785,1705091439847,-265.59,0.00026519,2]
[311425786,1705091439856,-6909.85,0.00026575,2]
[311425787,1705091439866,-4744.99,0.00026575,2]
[311425788,1705091439875,-918.58048648,0.00026667,3]
[311425789,1705091439885,-258.33493005,0.00026714,2]
[311425790,1705091439894,-150.0,0.00026714,2]
[311425791,1705091439904,-500.0,0.00026734,2]
[311425792,1705091439913,-209.0,0.000269,2]
[311425793,1705091439923,-918.01,0.00026951,2]
[311425794,1705091439932,-12283.43506918,0.00027,2]
[311425795,1705091439941,-875.0,0.00027,2]
[311425796,1705091439951,-204.0,0.00027075,2]
[311425797,1705091439962,-896.61,0.00027103,2]
[311425798,1705091439972,-150.47,0.00027178,2]
[311425799,1705091439982,-150.0,0.00027262,2]
[311425800,1705091439991,-155.0,0.00027397,2]
[311425801,1705091440001,-250.0,0.00027397,2]
[311425802,1705091440011,-14046.36,0.00027397,2]
[311425803,1705091440020,-5687.92805834,0.000274,2]
[311425804,1705091440029,-250.0,0.000274,2]
[311425805,1705091440038,-14046.36,0.00027556,2]
[311425806,1705091440048,-166.71,0.00027634,2]
[311425807,1705091440057,-14046.36,0.00027714,2]
[311425808,1705091440066,-150.0,0.0002781,2]
[311425809,1705091440075,-15560.88794363,0.00027872,2]
[311425810,1705091440084,-14046.36,0.00027872,2]
[311425811,1705091440093,-687.85574589,0.00028,2]
[311425812,1705091440103,-200.0,0.00028,2]
[311425813,1705091440112,-14046.36,0.0002803,2]
[311425814,1705091440121,-166.74308777,0.00028073,2]
[311425815,1705091440130,-896.61,0.00028081,2]
[311425816,1705091440140,-500.0,0.00028089,2]
[311425817,1705091440149,-1931.0,0.00028102,2]
[311425818,1705091440158,-860.039,0.00028102,2]
[311425819,1705091440167,-425.0,0.00028102,2]
[311425820,1705091440177,-879.0,0.00028102,2]
[311425821,1705091440186,-318.0,0.00028102,2]
[311425822,1705091440194,-2270.0,0.00028102,2]
[311425823,1705091440203,-2026.435,0.00028102,2]
[311425824,1705091440213,-1061.135,0.00028102,2]
[311425825,1705091440222,-1218.647,0.00028102,2]
[311425826,1705091440231,-14046.36,0.00028189,2]
[311425827,1705091440240,-150.47,0.00028266,2]
[311425828,1705091440250,-167.39,0.00028307,2]
[311425829,1705091440259,-204.0,0.00028341,4]
[311425830,1705091440268,-7999.99,0.00028347,6]
[311425831,1705091440278,-14046.36,0.00028347,2]
[311425832,1705091440286,-151.06375353,0.00028358,2]
[311425833,1705091440295,-491.84,0.00028374,2]
[311425834,1705091440305,-14046.36,0.00028505,2]
[311425835,1705091440314,-1401.30650892,0.00028528,2]
[311425836,1705091440323,-1087.10513143,0.0002855,2]
[311425837,1705091440332,-14046.36,0.00028664,2]
[311425838,1705091440341,-155.0,0.00028767,2]
[311425839,1705091440350,-1401.30650892,0.00028773,2]
[311425840,1705091440359,-150.0,0.00028798,2]
[311425841,1705091440368,-14046.36,0.00028822,2]
[311425842,1705091440378,-918.58048648,0.00028901,4]
[311425843,1705091440388,-4000.0,0.00029,2]
[311425844,1705091440398,-896.61,0.0002906,2]
[311425845,1705091440407,-1401.30650892,0.00029105,2]
[311425846,1705091440416,-481.31709317,0.0002915,2]
[311425847,1705091440427,-169.39707256,0.0002915,2]
[311425848,1705091440436,-2245.87787607,0.0002915,2]
[311425849,1705091440445,-265.59,0.00029171,2]
[311425850,1705091440455,-15560.88794363,0.0002929,2]
[311425851,1705091440466,-1401.30650892,0.00029317,2]
[311425852,1705091440476,-814.52419735,0.000294,2]
[311425853,1705091440485,-814.52419731,0.000294,2]
[311425854,1705091440496,-814.52419731,0.000294,2]
[311425855,1705091440505,-814.52419731,0.000294,2]
[311425856,1705091440514,-814.52419731,0.000294,2]
[311425857,1705091440523,-814.52419731,0.000294,2]
[311425858,1705091440533,-814.52419731,0.000294,2]
[311425859,1705091440542,-161.17692113,0.00029497,2]
[311425860,1705091440551,-19105.65798421,0.000295,2]
[311425861,1705091440560,-1876.66,0.00029529,2]
[311425862,1705091440569,-406.05,0.00029529,2]
[311425863,1705091440578,-150.0,0.0002958,2]
[311425864,1705091440587,-150.0,0.00029601,2]
[311425865,1705091440598,-204.0,0.00029607,6]
[311425866,1705091440608,-918.01,0.00029646,2]
[311425867,1705091440619,-2000.0,0.00029697,3]
[311425868,1705091440627,-55555.0,0.000297,2]
[311425869,1705091440637,-150.0,0.00029701,2]
[311425870,1705091440646,-271.03,0.00029756,2]
[311425871,1705091440655,-150.0,0.00029757,2]
[311425872,1705091440664,-155.0,0.00029795,2]
[311425873,1705091440673,-549.68176554,0.00029795,2]
[311425874,1705091440682,-1497.43057396,0.00029795,2]
[311425875,1705091440692,-291.0729883,0.00029795,2]
[311425876,1705091440701,-499.86522416,0.00029795,2]
[311425877,1705091440710,-1040.01518079,0.00029795,2]
[311425878,1705091440719,-308.66623732,0.00029795,2]
[311425879,1705091440728,-16713.83662006,0.00029795,2]
[311425880,1705091440737,-2605.87309653,0.00029795,2]
[311425881,1705091440747,-243.80387807,0.00029795,2]
[311425882,1705091440756,-5311.83056493,0.00029795,2]
[311425883,1705091440765,-3190.17558918,0.00029795,2]
[311425884,1705091440774,-288.34262207,0.00029795,2]
[311425885,1705091440783,-244.3789014,0.00029795,2]
[311425886,1705091440792,-200.89664823,0.00029795,2]
[311425887,1705091440801,-10514.57275179,0.00029795,2]
[311425888,1705091440811,-1633.12898622,0.00029795,2]
[311425889,1705091440820,-4287.18806314,0.00029795,2]
[311425890,1705091440829,-174.48037452,0.00029795,2]
[311425891,1705091440838,-20067.72,0.00029795,2]
[311425892,1705091440847,-364.59644785,0.00029797,2]
[311425893,1705091440857,-2746.77266643,0.00029797,2]
[311425894,1705091440866,-475.03562767,0.00029797,2]
[311425895,1705091440875,-2139.01522116,0.00029797,2]
[311425896,1705091440884,-622.22329972,0.00029797,2]
[311425897,1705091440893,-284.67879554,0.00029797,2]
[311425898,1705091440902,-20568.24679048,0.00029798,2]
[311425899,1705091440911,-150.0,0.00029798,2]
[311425900,1705091440920,-2797.9981815,0.00029798,2]
[311425901,1705091440929,-3292.32224499,0.00029799,2]
[311425902,1705091440939,-313195.63911867,0.000298,2]
[311425903,1705091440949,-154498.21431025,0.000298,2]
[311425904,1705091441124,-199.43597332,0.000298,2]
[311425905,1705091441134,-2563.20839699,0.00029818,2]
[311425906,1705091441144,-1387.060478,0.00029821,2]
[311425907,1705091441153,-47320.5864953,0.00029821,2]
[311425908,1705091441164,-280.16933399,0.00029843,17]
[311425909,1705091441174,-386.31699313,0.000299,2]
[311425910,1705091441186,-500.0,0.00029945,2]
[311425911,1705091441196,-3660.28081603,0.0002996,2]
[311425912,1705091441206,-100000.0,0.0003,2]
[311425913,1705091441215,-912.94985568,0.0003,4]
[311425914,1705091441225,-459.95325882,0.0003,4]
[311425916,1705091441235,-811.19032181,0.0003,4]
[311425918,1705091441244,-444.70419304,0.0003,4]
[311425920,1705091441253,-155.0,0.0003,2]
[311425923,1705091441263,-690.91027543,0.0003,2]
[311425924,1705091441272,-23000.0,0.0003,4]
[311425926,1705091441281,-155.5463758,0.0003,4]
[311425928,1705091441291,-968.02507301,0.0003,4]
[311425931,1705091441325,-526.10734527,0.0003,30]
[311425932,1705091441335,-581.79448282,0.0003,2]
[311425935,1705091441346,-268071.41388952,0.0003,4]
[311425937,1705091441362,-40381.39685412,0.0003,4]
[311425939,1705091441372,-6851.60015863,0.0003,4]
[311425941,1705091441381,-682.24834819,0.0003,4]
[311425942,1705091441391,-8826.98630773,0.0003,4]
[311425945,1705091441401,-155.49300344,0.0003,4]
[311425946,1705091441411,-323.88666588,0.0003,2]
[311425948,1705091441420,-350.38014876,0.0003,2]
[311425951,1705091441429,-1875.59940519,0.0003,4]
[311425953,1705091441438,-432.39491422,0.0003,4]
[311425955,1705091441447,-9625.15929167,0.0003,2]
[311425957,1705091441456,-1572.87627363,0.0003,2]
[311425959,1705091441467,-310.38851797,0.0003,7]
[311425961,1705091441478,-83134.26485838,0.0003,4]
[311425962,1705091441488,-1450.0,0.0003,3]
[311425964,1705091441500,-3000.0,0.0003,2]
[311425966,1705091441510,-3000.0,0.0003,2]
[311425968,1705091441520,-3000.0,0.0003,2]
[311425970,1705091441529,-3000.0,0.0003,2]
[311425972,1705091441539,-3000.0,0.0003,2]
[311425974,1705091441548,-3000.0,0.0003,2]
[311425976,1705091441558,-203.0,0.0003,2]
[311425978,1705091441569,-896.61,0.00030038,2]
[311425980,1705091441580,-500.0,0.00030066,2]
[311425982,1705091441590,-1401.30650892,0.00030116,2]
[311425984,1705091441601,-154.75,0.00030136,2]
[311425986,1705091441612,-154.75,0.00030136,2]
[311425989,1705091441623,-154.75,0.00030136,2]
[311425991,1705091441633,-154.75,0.00030136,2]
[311425993,1705091441643,-154.75,0.00030136,2]
[311425994,1705091441653,-154.75,0.00030136,2]
[311425997,1705091441664,-154.75,0.00030136,2]
[311425998,1705091441673,-154.75,0.00030136,2]
[311426000,1705091441683,-154.75,0.00030136,2]
[311426002,1705091441693,-154.75,0.00030136,2]
[311426004,1705091441702,-154.75,0.00030136,2]
[311426006,1705091441712,-154.75,0.00030136,2]
[311426008,1705091441723,-154.75,0.00030136,2]
[311426010,1705091441732,-154.75,0.00030136,2]
[311426012,1705091441742,-154.75,0.00030136,2]
[311426015,1705091441753,-154.75,0.00030136,2]
[311426017,1705091441762,-154.75,0.00030136,2]
[311426018,1705091441772,-154.75,0.00030136,2]
[311426020,1705091441783,-154.75,0.00030136,2]
[311426023,1705091441793,-4554.6,0.00030137,2]
[311426024,1705091441803,-153.84,0.00030137,2]
[311426027,1705091441815,-155.0,0.00030137,2]
[311426029,1705091441824,-500.0,0.00030164,2]
[311426031,1705091441834,-1401.30650895,0.00030257,2]
[311426033,1705091441843,-500.0,0.00030384,2]
[311426035,1705091441852,-433.26922306,0.000304,2]
[311426036,1705091441863,-155.0,0.000305,4]
[311426037,1705091441874,-1500.0,0.000305,2]
[311426038,1705091441883,-500.0,0.00030603,2]
[311426039,1705091441893,-491.84,0.00030638,2]
[311426040,1705091441902,-15560.88794363,0.00030709,2]
[311426041,1705091441911,-150.0,0.00030798,2]
[311426042,1705091441922,-500.0,0.00030822,2]
[311426043,1705091441931,-293.76,0.00030862,2]
[311426044,1705091441941,-204.0,0.00030874,8]
[311426045,1705091441953,-150.0,0.00030899,2]
[311426046,1705091441964,-154.75,0.00030899,2]
[311426047,1705091441974,-154.75,0.00030899,2]
[311426048,1705091441983,-154.75,0.00030899,2]
[311426049,1705091441991,-154.75,0.00030899,2]
[311426051,1705091442001,-154.94751056,0.00030899,2]
[311426052,1705091442011,-150.82842926,0.000309,2]
[311426054,1705091442021,-150.82842908,0.000309,2]
[311426056,1705091442032,-273604.65036409,0.000309,2]
[311426058,1705091442043,-100000.0,0.00031,2]
[311426060,1705091442053,-155.0,0.00031,4]
[311426062,1705091442064,-896.61,0.00031017,2]
[311426064,1705091442075,-500.0,0.00031041,2]
[311426066,1705091442086,-153.84,0.0003105,2]
[311426068,1705091442096,-500.0,0.00031075,2]
[311426070,1705091442106,-1931.0,0.00031102,2]
[311426072,1705091442117,-918.58048648,0.00031136,5]
[311426074,1705091442128,-500.0,0.0003126,2]
[311426076,1705091442138,-157.74299812,0.0003131,2]
[311426078,1705091442148,-500.0,0.00031479,2]
[311426080,1705091442158,-500.0,0.000315,2]
[311426082,1705091442167,-1000.0,0.000315,2]
[311426084,1705091442177,-171.8,0.00031507,2]
[311426086,1705091442189,-155.0,0.00031507,2]
[311426088,1705091442200,-10000.0,0.00031612,2]
[311426090,1705091442209,-151.74,0.00031644,2]
[311426092,1705091442220,-1087.10513143,0.00031675,2]
[311426094,1705091442230,-417.33,0.00031684,2]
[311426096,1705091442240,-313.77,0.00031684,2]
[311426098,1705091442250,-500.0,0.00031699,2]
[311426100,1705091442260,-20000.0,0.000317,2]
[311426102,1705091442271,-217.97,0.0003172,2]
[311426103,1705091442281,-389.35,0.0003172,2]
[311426104,1705091442291,-500.0,0.00031743,2]
[311426105,1705091442301,-2563.20839699,0.00031797,2]
[311426106,1705091442311,-150.0,0.00031798,2]
[311426107,1705091442321,-240297.752311,0.000318,3]
[311426108,1705091442333,-265.59,0.00031823,2]
[311426109,1705091442345,-150.0,0.00031899,2]
[311426110,1705091442355,-500.0,0.00031918,2]
[311426111,1705091442365,-153.84,0.00031963,2]
[311426112,1705091442374,-896.61,0.00031995,2]
[311426113,1705091442383,-100000.0,0.00032,2]
[311426114,1705091442395,-13056.05779594,0.00032,4]
[311426115,1705091442407,-1956.55820431,0.00032,2]
[311426116,1705091442417,-297.18934179,0.00032,4]
[311426117,1705091442427,-1000.0,0.00032,2]
[311426118,1705091442437,-2842.72092176,0.00032,4]
[311426119,1705091442448,-200.0,0.00032,2]
[311426120,1705091442457,-155.68374332,0.00032,2]
[311426121,1705091442467,-3000.0,0.00032,2]
[311426122,1705091442478,-300.0,0.00032,5]
[311426123,1705091442487,-150.0,0.00032,5]
[311426124,1705091442496,-3000.0,0.0003201,2]
[311426125,1705091442505,-3000.0,0.0003202,2]
[311426127,1705091442514,-3000.0,0.0003203,2]
[311426128,1705091442523,-3000.0,0.0003204,2]
[311426129,1705091442534,-1862.02896516,0.0003205,2]
[311426154,1705091443264,-1137.97103484,0.0003205,2]
[311426156,1705091443273,-3000.0,0.0003206,2]
[311426158,1705091443284,-3000.0,0.0003207,2]
[311426160,1705091443294,-3000.0,0.0003208,2]
[311426161,1705091443303,-3000.0,0.0003209,2]
[311426164,1705091443312,-1105.239998,0.000321,2]
[311426166,1705091443322,-3000.0,0.000321,2]
[311426168,1705091443333,-3000.0,0.0003211,2]
[311426170,1705091443343,-3000.0,0.0003212,2]
[311426171,1705091443352,-15560.88794363,0.00032127,3]
[311426174,1705091443361,-3000.0,0.0003213,2]
[311426176,1705091443370,-500.0,0.00032137,2]
[311426178,1705091443379,-204.0,0.0003214,10]
[311426179,1705091443389,-3000.0,0.0003214,2]
[311426181,1705091443399,-3000.0,0.0003215,2]
[311426184,1705091443409,-3000.0,0.0003216,2]
[311426186,1705091443419,-3000.0,0.0003217,2]
[311426187,1705091443427,-3000.0,0.0003218,2]
[311426189,1705091443438,-3000.0,0.0003219,2]
[311426192,1705091443448,-3000.0,0.000322,2]
[311426194,1705091443457,-3000.0,0.0003221,2]
[311426196,1705091443467,-3000.0,0.0003222,2]
[311426197,1705091443477,-3000.0,0.0003223,2]
[311426199,1705091443486,-3000.0,0.0003224,2]
[311426201,1705091443495,-3000.0,0.0003225,2]
[311426203,1705091443505,-3000.0,0.0003226,2]
[311426206,1705091443514,-3000.0,0.0003227,2]
[311426207,1705091443524,-4993.329298,0.0003228,2]
[311426209,1705091443533,-918.01,0.00032341,2]
[311426211,1705091443543,-500.0,0.00032356,2]
[311426213,1705091443552,-500.0,0.00032437,3]
[311426216,1705091443561,-500.0,0.00032446,3]
[311426218,1705091443571,-500.0,0.00032455,3]
[311426220,1705091443580,-500.0,0.00032464,3]
[311426221,1705091443589,-500.0,0.00032473,3]
[311426224,1705091443599,-500.0,0.00032481,3]
[311426225,1705091443608,-500.0,0.0003249,3]
[311426227,1705091443617,-500.0,0.00032499,3]
[311426229,1705091443625,-1000.0,0.000325,2]
[311426231,1705091443634,-500.0,0.00032575,2]
[311426233,1705091443643,-228.430188,0.00032623,2]
[311426235,1705091443652,-2073.925761,0.00032623,2]
[311426237,1705091443661,-182.472386,0.00032623,2]
[311426239,1705091443671,-228.430189,0.00032623,2]
[311426241,1705091443680,-2073.925762,0.00032623,2]
[311426243,1705091443689,-182.472387,0.00032623,2]
[311426245,1705091443698,-174.159976,0.00032623,2]
[311426247,1705091443707,-703.88,0.00032647,2]
[311426249,1705091443717,-150.0,0.00032647,2]
[311426251,1705091443726,-408.0,0.00032647,2]
[311426253,1705091443735,-500.0,0.00032795,2]
[311426255,1705091443744,-500.0,0.00032876,2]
[311426257,1705091443753,-153.84,0.00032877,2]
[311426259,1705091443762,-737.92,0.00032877,15]
[311426261,1705091443773,-636.30123443,0.00032877,2]
[311426263,1705091443783,-303.36,0.0003288,2]
[311426265,1705091443792,-303.36,0.0003288,2]
[311426267,1705091443801,-303.36,0.0003288,2]
[311426269,1705091443811,-303.36,0.0003288,2]
[311426271,1705091443819,-303.36,0.0003288,2]
[311426273,1705091443828,-491.84,0.00032902,2]
[311426274,1705091443838,-896.61,0.00032974,2]
[311426276,1705091443847,-100000.0,0.00033,3]
[311426278,1705091443857,-300.0,0.00033,6]
[311426279,1705091443866,-203.0,0.00033,2]
[311426280,1705091443875,-500.0,0.00033014,2]
[311426281,1705091443885,-228.430188,0.00033031,2]
[311426282,1705091443894,-2073.925761,0.00033031,2]
[311426283,1705091443903,-228.430189,0.00033031,2]
[311426284,1705091443913,-2073.925762,0.00033031,2]
[311426285,1705091443922,-166.71,0.00033161,2]
[311426286,1705091443931,-182.472386,0.00033167,2]
[311426287,1705091443941,-182.472387,0.00033167,2]
[311426288,1705091443954,-156.0,0.00033213,2]
[311426289,1705091443963,-161.0,0.00033213,2]
[311426290,1705091443973,-500.0,0.00033233,2]
[311426291,1705091443982,-293.84,0.00033362,2]
[311426292,1705091443992,-918.58048648,0.0003337,6]
[311426293,1705091444000,-204.0,0.00033406,13]
[311426294,1705091444010,-350.0,0.00033438,2]
[311426295,1705091444019,-500.0,0.00033438,2]
[311426296,1705091444028,-500.0,0.00033438,2]
[311426297,1705091444038,-500.0,0.00033438,2]
[311426298,1705091444046,-500.0,0.00033438,2]
[311426299,1705091444055,-500.0,0.00033438,2]
[311426300,1705091444064,-500.0,0.00033438,2]
[311426301,1705091444073,-500.0,0.00033438,2]
[311426302,1705091444083,-500.0,0.00033438,2]
[311426303,1705091444092,-500.0,0.00033438,2]
[311426304,1705091444101,-500.0,0.00033438,2]
[311426305,1705091444110,-500.0,0.00033438,2]
[311426306,1705091444120,-500.0,0.00033438,2]
[311426307,1705091444129,-500.0,0.00033438,2]
[311426308,1705091444138,-500.0,0.00033438,2]
[311426309,1705091444147,-500.0,0.00033438,2]
[311426310,1705091444156,-500.0,0.00033438,2]
[311426311,1705091444165,-500.0,0.00033438,2]
[311426312,1705091444174,-500.0,0.00033438,2]
[311426313,1705091444182,-500.0,0.00033438,2]
[311426314,1705091444191,-500.0,0.00033438,2]
[311426315,1705091444201,-500.0,0.00033438,2]
[311426316,1705091444210,-500.0,0.00033438,2]
[311426317,1705091444219,-500.0,0.00033438,2]
[311426318,1705091444230,-500.0,0.00033438,2]
[311426319,1705091444241,-500.0,0.00033438,2]
[311426320,1705091444250,-500.0,0.00033438,2]
[311426321,1705091444259,-500.0,0.00033438,2]
[311426322,1705091444267,-500.0,0.00033438,2]
[311426323,1705091444276,-500.0,0.00033438,2]
[311426324,1705091444284,-500.0,0.00033438,2]
[311426325,1705091444294,-500.0,0.00033438,2]
[311426326,1705091444303,-500.0,0.00033438,2]
[311426327,1705091444312,-500.0,0.00033438,2]
[311426328,1705091444322,-500.0,0.00033438,2]
[311426329,1705091444331,-500.0,0.00033438,2]
[311426330,1705091444341,-200.0,0.00033438,2]
[311426331,1705091444349,-500.0,0.00033438,2]
[311426332,1705091444359,-500.0,0.00033438,2]
[311426333,1705091444368,-500.0,0.00033438,2]
[311426334,1705091444378,-500.0,0.00033438,2]
[311426335,1705091444388,-500.0,0.00033438,2]
[311426336,1705091444399,-500.0,0.00033438,2]
[311426337,1705091444409,-500.0,0.00033438,2]
[311426338,1705091444419,-228.430188,0.00033439,2]
[311426339,1705091444428,-2073.925761,0.00033439,2]
[311426340,1705091444439,-228.430189,0.00033439,2]
[311426341,1705091444449,-2073.925762,0.00033439,2]
[311426342,1705091444459,-500.0,0.00033452,2]
[311426343,1705091444468,-500.0,0.000335,2]
[311426344,1705091444479,-726.69602173,0.000335,2]
[311426345,1705091444489,-2019.020746,0.000335,2]
[311426346,1705091444498,-1000.0,0.000335,2]
[311426347,1705091444506,-15560.88794363,0.00033545,5]
[311426348,1705091444518,-280.16933399,0.00033563,22]
[311426349,1705091444527,-155.56865287,0.0003357,4]
[311426350,1705091444537,-500.0,0.00033671,2]
[311426351,1705091444547,-500.0,0.000337,2]
[311426352,1705091444558,-500.0,0.000337,2]
[311426353,1705091444567,-500.0,0.000337,2]
[311426354,1705091444577,-500.0,0.000337,2]
[311426355,1705091444587,-500.0,0.000337,2]
[311426356,1705091444596,-500.0,0.000337,2]
[311426357,1705091444605,-500.0,0.000337,2]
[311426358,1705091444614,-500.0,0.000337,2]
[311426359,1705091444623,-500.0,0.000337,2]
[311426360,1705091444632,-500.0,0.000337,2]
[311426361,1705091444642,-500.0,0.000337,2]
[311426362,1705091444650,-500.0,0.000337,2]
[311426363,1705091444661,-500.0,0.000337,2]
[311426364,1705091444670,-500.0,0.000337,2]
[311426365,1705091444679,-500.0,0.000337,2]
[311426366,1705091444688,-500.0,0.000337,2]
[311426367,1705091444698,-500.0,0.000337,2]
[311426368,1705091444707,-500.0,0.000337,2]
[311426369,1705091444717,-500.0,0.000337,2]
[311426370,1705091444727,-500.0,0.000337,2]
[311426371,1705091444736,-500.0,0.000337,2]
[311426372,1705091444745,-500.0,0.000337,2]
[311426373,1705091444754,-2876.31143968,0.000337,4]
[311426374,1705091444763,-182.472386,0.00033711,2]
[311426375,1705091444773,-182.472387,0.00033711,2]
[311426376,1705091444782,-153.84,0.0003379,2]
[311426377,1705091444791,-228.430188,0.00033847,2]
[311426378,1705091444800,-2073.925761,0.00033847,2]
[311426379,1705091444809,-228.430189,0.00033847,2]
[311426380,1705091444819,-2073.925762,0.00033847,2]
[311426381,1705091444829,-10474.73355899,0.00033857,10]
[311426382,1705091444838,-12511.03241412,0.00033857,10]
[311426383,1705091444847,-5096.09360945,0.00033857,10]
[311426384,1705091444856,-6305.33427385,0.00033857,10]
[311426385,1705091444865,-21112.30899652,0.00033857,10]
[311426386,1705091444875,-500.0,0.0003389,2]
[311426387,1705091444885,-166.74308777,0.00033936,2]
[311426388,1705091444895,-896.61,0.00033952,2]
[311426389,1705091444905,-242.37730372,0.00033999,7]
[311426390,1705091444915,-500.0,0.00033999,7]
[311426391,1705091444926,-500.0,0.00033999,7]
[311426392,1705091444936,-500.0,0.00033999,7]
[311426393,1705091444950,-500.0,0.00033999,7]
[311426394,1705091444962,-297.87645455,0.00033999,7]
[311426395,1705091444971,-500.0,0.00033999,7]
[311426396,1705091444981,-500.0,0.00033999,7]
[311426397,1705091444992,-500.0,0.00033999,7]
[311426398,1705091445002,-500.0,0.00033999,7]
[311426399,1705091445010,-500.0,0.00033999,7]
[311426400,1705091445020,-500.0,0.00033999,7]
[311426401,1705091445029,-500.0,0.00033999,7]
[311426402,1705091445038,-500.0,0.00033999,7]
[311426403,1705091445048,-500.0,0.00033999,7]
[311426404,1705091445058,-100000.0,0.00034,4]
[311426405,1705091445067,-1000.0,0.00034,4]
[311426406,1705091445076,-76867.85575355,0.00034,2]